Cogmind - Beta 15 --- EXPLORER MODE // 2025.08.04 @ 16:20:23 Player: Dert Result: Destroyed by LT-B9N(R) with Subdweller Laser Performance ------------- Evolutions (0) 0 Regions Visited (3) 600 Robots Destroyed (16) 80 Value Destroyed (584) 584 Prototype IDs (0) 0 Alien Tech Used (0) 0 Bonus (0) 0 TOTAL SCORE: 1264 Bonus ------- None Cogmind --------- Core Integrity 0/250 Matter 266/350 Energy 315/315 System Corruption 3% Temperature Cool (6) Movement Core (650) Ox12 Location -10/Subcaves Parts ------- > --- POWER (1) -------- Neutrino Core > --- PROPULSION (2) --- (None) > --- UTILITY (3) ------ Large Storage Unit Small Matter Pod Subdweller Optics > --- WEAPON (2) ------- Assault Rifle > --- INVENTORY (15) --- Large Battery (200) Seismic Detector Assault Rifle Peak State ------------ > --- POWER ------------ Neutrino Core > --- PROPULSION ------- Subdweller Monowheel > --- UTILITY ---------- Large Storage Unit Small Matter Pod Subdweller Optics > --- WEAPON ----------- Assault Rifle Rocket Launcher > --- INVENTORY -------- Large Battery Seismic Detector Assault Rifle [Rating: 15] Favorites ----------- Power Light Ion Engine Engine Light Ion Engine Power Core Neutrino Core Propulsion Aluminum Leg Leg Aluminum Leg Wheel Subdweller Monowheel Utility Seismic Detector Device Seismic Detector Storage Large Storage Unit Protection Weapon Shielding Weapon Mining Laser Ballistic Gun Assault Rifle Launcher Rocket Launcher Special Weapon Mining Laser Special Melee Weapon Datajack Build | -11 -10 -10 -10 ------- Run | Yrd Mat Min Sub Slots Evolved 1 | . 1 . . Power . | . . . . Propulsion . | . . . . Utility 1 | . 1 . . Weapon . | . . . . Parts Attached 20 | 6 4 3 7 Power 2 | 1 . . 1 Engine 1 | 1 . . . Core 1 | . . . 1 Reactor . | . . . . Propulsion 4 | 2 . . 2 Treads . | . . . . Leg 2 | 2 . . . Wheel 2 | . . . 2 Hover . | . . . . Flight . | . . . . Utility 8 | 2 2 1 3 Device 2 | . 1 . 1 Storage 3 | 1 1 1 . Processor . | . . . . Hackware . | . . . . Protection 3 | 1 . . 2 Artifact . | . . . . Weapon 6 | 1 2 2 1 Energy Gun . | . . . . Energy Cannon . | . . . . Ballistic Gun 2 | 1 . . 1 Ballistic Cannon . | . . . . Launcher 1 | . . 1 . Special Weapon 2 | . 1 1 . Impact Weapon . | . . . . Slashing Weapon . | . . . . Piercing Weapon . | . . . . Special Melee Weapon 1 | . 1 . . Unidentified Prototypes . | . . . . Parts Lost 11 | . 1 1 9 Power 1 | . . 1 . Propulsion 4 | . . . 4 Utility 3 | . . . 3 Weapon 3 | . 1 . 2 Highest Loss Streak 6 | . 1 1 6 To Critical Strikes . | . . . . Average Backups 4 | 1 2 4 6 Power . | . . . . Propulsion . | 1 . . . Utility 3 | . 1 2 4 Weapon 1 | . . 2 1 Tool/Special . | . . . . Unused Backups 2 | . 2 . . Power . | . . . . Propulsion 2 | . 2 . . Utility . | . . . . Weapon . | . . . . Tool/Special . | . . . . Average Slot Usage (%) 82 | . 90 89 72 Engine 3 | . 12 2 . Leg 17 | . 25 25 7 Wheel 5 | . . . 13 Device 9 | . 12 12 6 Storage 13 | . 16 12 12 Protection 11 | . 8 12 11 Ballistic Gun 6 | . 12 2 7 Launcher 5 | . . 9 4 Special Weapon 7 | . . 12 6 Peak Build Rating 15 | 6 8 9 15 Average Rating 8 | 3 7 8 9 On Entrance 5 | . 6 8 8 Naked Turns . | . . . . Heaviest Build 43 | 7 11 27 43 Greatest Support 40 | 20 20 20 40 Greatest Overweight (x) 8 | . . 1 8 Average Overweight (x) . | . . . 1 Largest Inventory Capacity 15 | 5 5 15 15 Average Capacity 10 | 5 5 9 15 Most Carried 9 | 4 4 5 9 Average Carried 5 | 1 2 4 7 Final Capacity 15 | 5 5 15 15 Final Carried 5 | 4 4 5 3 Class Distribution -------------------- 100% | Hacker-Mutant Dominant Class ---------------- Hacker-Mutant | -10/Materials Hacker-Mutant | -10/Mines Hacker-Mutant | -10/Subcaves Resources | -11 -10 -10 -10 ----------- Run | Yrd Mat Min Sub Matter Collected 625 | 246 88 92 199 Remotely . | . . . . Salvage Created 412 | 61 131 . 220 Parts 28 | 7 3 . 18 Haulers Intercepted . | . . . . Recyclers Shooed . | . . . . Parts Field Recycled . | . . . . Retrieved Matter . | . . . . Parts Self-Destructed . | . . . . Prevented . | . . . . Kills | -11 -10 -10 -10 ------- Run | Yrd Mat Min Sub Combat Hostiles Destroyed 15 | 1 3 . 11 Guns 7 | 1 3 . 3 AOE 8 | . . . 8 Classes Destroyed 3 | 2 . . 1 Worker 1 | 1 . . . Grunt 5 | 1 3 . 1 Subdweller 10 | . . . 10 Best Kill Streak 7 | 1 2 . 7 Combat Bots Only 7 | 1 2 . 7 Max Kills in Single Turn 3 | 1 1 . 3 Gunslinging . | . . . . Exploded 3 | . . . 3 Melee . | . . . . Uniques/NPCs Destroyed . | . . . . Combat | -11 -10 -10 -10 -------- Run | Yrd Mat Min Sub Hostile Shots Fired 150 | 4 49 . 97 Missed 47 | . 21 . 26 Hits 103 | 4 28 . 71 Projectile 103 | 4 28 . 71 AOE 2 | . . . 2 Critical Strikes 2 | . . . 2 Damage Taken 1249 | 26 233 12 978 Core 255 | 13 46 . 196 Absorbed by Shields . | . . . . Redirected to Shielding 47 | . 2 . 45 Ignored by Resistances 740 | 17 143 . 580 Core Remaining (%) 94 | 94 . . . Volleys Fired 72 | 6 24 4 38 Largest 2 | 1 1 1 2 Hottest 100 | 20 20 100 100 Shots Fired 74 | 6 24 4 40 Gun 62 | 6 24 . 32 Cannon . | . . . . Launcher 7 | . . . 7 Special 5 | . . 4 1 Kinetic 62 | 6 24 . 32 Thermal 5 | . . 4 1 Explosive 7 | . . . 7 Electromagnetic . | . . . . Robot Hit Streak 35 | 6 11 . 35 Robot Miss Streak 2 | . 1 . 2 Penetration Max . | . . . . Secondary Targets . | . . . . Shots Hit Robots 64 | 6 22 . 36 Core Hits 32 | 3 6 1 22 Critical Kills . | . . . . Critical Parts Destroyed 1 | . . . 1 Critical Strikes 1 | . . . 1 Destroy 1 | . . . 1 Melee Attacks 1 | . 1 . . Impact . | . . . . Slashing . | . . . . Piercing . | . . . . Sneak Attacks . | . . . . Combat Hostiles . | . . . . Follow-up Attacks . | . . . . Damage Inflicted 1727 | 75 264 16 1372 Guns 723 | 75 264 . 384 Cannons . | . . . . Explosions 964 | . . . 964 Melee . | . . . . Ramming 16 | . . 16 . Kinetic 723 | 75 264 . 384 Thermal 24 | . . . 24 Explosive 964 | . . . 964 Electromagnetic . | . . . . Impact . | . . . . Slashing . | . . . . Piercing . | . . . . Highest Corruption 3 | . . 3 3 Average Corruption 3 | . . 3 3 Corruption Purged . | . . . . Corruption Blocked . | . . . . Effects 20 | . . 9 11 Message Errors 4 | . . . 4 Matter Fused 5 | . . 2 3 Energy Discharges 5 | . . 3 2 Parts Fused 1 | . . . 1 Data Loss (minor) 3 | . . 2 1 Data Loss (major) 2 | . . 2 . Overload Shots . | . . . . Overflow Damage 3 | . . . 3 Projectiles . | . . . . Explosions 3 | . . . 3 Melee . | . . . . Knockbacks . | . . . . Impact . | . . . . Kinetic . | . . . . Secondary . | . . . . Self-Inflicted Damage 64 | . . 12 52 Shots 2 | . . . 2 Rammed . | . . . . Targets Rammed 2 | . . 2 . Kicked 2 | . . 2 . Crushed . | . . . . Highest Temperature . | . . . . Average Temperature . | . . . . Received Heat Transfer 465 | 24 219 . 222 Siege Activations . | . . . . Martial Activations . | . . . . Shielding Activations . | . . . . Robots Disrupted . | . . . . Combat Hostiles . | . . . . Robots Corrupted . | . . . . Combat Hostiles . | . . . . Parts Fried . | . . . . Impact Corruptions . | . . . . Robots Melted . | . . . . Combat Hostiles . | . . . . Parts Melted . | . . . . Heat Transferred 50 | . . . 50 Parts Sabotaged . | . . . . Parts Stolen . | . . . . Parts Stripped . | . . . . Power Chain Reactions . | . . . . Alert | -11 -10 -10 -10 ------- Run | Yrd Mat Min Sub Maximum Alert Level . | . . . . Low Security (%) 100 | 100 100 100 . Level 1 . | . . . . Level 2 . | . . . . Level 3 . | . . . . Level 4 . | . . . . Level 5 . | . . . . High Security . | . . . . Max Security . | . . . . Peak Influence 50 | 20 50 1 . Initial 9 | . 9 . . Average 2 | 3 6 . . Influence Increases 117 | 25 70 2 20 Destroy 0b10 Robot/C 100 | 20 60 . 20 Destroy 0b10 Robot/NC 5 | 5 . . . Destroy Leader 10 | . 10 . . Destroy Structure 2 | . . 2 . Influence Decreases 117 | 5 90 2 20 Entered New Map 11 | . 11 . . Time Decay 106 | 5 79 2 20 Squads Dispatched . | . . . . Investigation . | . . . . Extermination . | . . . . Reinforcement . | . . . . Assault . | . . . . Garrison . | . . . . Intercept . | . . . . Searches Triggered . | . . . . Construction Impeded . | . . . . Haulers Reinforced . | . . . . Active Scanning Responses . | . . . . Cargo Convoy Interrupts . | . . . . Stealth | -11 -10 -10 -10 --------- Run | Yrd Mat Min Sub Distress Signals . | . . . . Communications Jammed . | . . . . Distress Signals . | . . . . Times Spotted 23 | 1 5 . 17 Peak Tracking Total 9 | 1 4 . 9 Tactical Retreats . | . . . . Traps | -11 -10 -10 -10 ------- Run | Yrd Mat Min Sub Traps Triggered . | . . . . Indirectly . | . . . . Trap Hack Attempts . | . . . . Triggered . | . . . . Disarmed . | . . . . Reprogrammed . | . . . . Reused . | . . . . Traps Extracted . | . . . . Installed . | . . . . Triggered . | . . . . Machines | -11 -10 -10 -10 ---------- Run | Yrd Mat Min Sub Machines Disabled . | . . . . Max in Single Turn . | . . . . Machines Repaired . | . . . . Machines Dismantled . | . . . . Machines Sabotaged . | . . . . Overloaded Fab Kills . | . . . . Hacking | -11 -10 -10 -10 --------- Run | Yrd Mat Min Sub Machines Accessed 2 | . 2 . . Terminals 1 | . 1 . . Fabricators . | . . . . Repair Stations . | . . . . Recycling Units 1 | . 1 . . Scanalyzers . | . . . . Garrison Access . | . . . . Total Hacks 7 | . 7 . . Successful 7 | . 7 . . Failed . | . . . . Catastrophic . | . . . . Database Lockouts . | . . . . Manual . | . . . . Terminals 1 | . 1 . . Fabricators . | . . . . Repair Stations . | . . . . Recycling Units 6 | . 6 . . Scanalyzers . | . . . . Garrison Access . | . . . . Terminal Hacks 1 | . 1 . . Zone Layout 1 | . 1 . . Fabricator Hacks . | . . . . Repair Station Hacks . | . . . . Recycling Unit Hacks 6 | . 6 . . Recycle Component 2 | . 2 . . Process 1 | . 1 . . Report Inventory 2 | . 2 . . Retrieve Matter 1 | . 1 . . Scanalyzer . | . . . . Garrison Access Hacks . | . . . . Unauthorized Hacks . | . . . . Terminals . | . . . . Fabricators . | . . . . Repair Stations . | . . . . Recycling Units . | . . . . Scanalyzers . | . . . . Garrison Access . | . . . . Data Cores Recovered . | . . . . Used . | . . . . Hacking Detections . | . . . . Full Trace Events . | . . . . Feedback Events . | . . . . Feedback Blocked . | . . . . Robot Schematics Acquired . | . . . . Robots Built . | . . . . Authchips . | . . . . Time . | . . . . Total Robot Build Rating . | . . . . Part Schematics Acquired . | . . . . Parts Built . | . . . . Authchips . | . . . . Time . | . . . . Total Part Build Rating . | . . . . Parts Repaired . | . . . . Time . | . . . . Parts Recycled 2 | . 2 . . Recycled Matter 43 | . 43 . . Retrieved Matter 43 | . 43 . . Retrieved Components . | . . . . Parts Scanalyzed . | . . . . Part Schematics Acquired . | . . . . Parts Damaged . | . . . . Bothacking | -11 -10 -10 -10 ------------ Run | Yrd Mat Min Sub Used RIF Installer . | . . . . Robots Hacked . | . . . . Non-combat . | . . . . Combat . | . . . . Robot Hacks Applied . | . . . . Relay Couplers Released . | . . . . Fabnet Peak Effective % . | . . . . Robots Rewired . | . . . . Allies Hacked . | . . . . Hacks Repelled . | . . . . Allies | -11 -10 -10 -10 -------- Run | Yrd Mat Min Sub Total Allies . | . . . . Largest Group . | . . . . Highest-Rated Group . | . . . . Highest-Rated Ally . | . . . . Total Orders . | . . . . Ally Attacks . | . . . . Total Damage . | . . . . Kills . | . . . . Allies Corrupted . | . . . . Allies Melted . | . . . . Intel | -11 -10 -10 -10 ------- Run | Yrd Mat Min Sub Active Infowar (turns) 1157 | . 319 532 306 Optics 31 | . . . 31 Seismic 1126 | . 319 532 275 Robot Analysis Total . | . . . . Derelict Logs Recovered . | . . . . Drone Launches . | . . . . Drone Recoveries . | . . . . Exploration | -11 -10 -10 -10 ------------- Run | Yrd Mat Min Sub Turns Passed 1564 | 98 319 532 615 Spaces Moved 939 | 71 196 319 353 Core 25 | 17 . . 8 Treads . | . . . . Legs 665 | 54 196 319 96 Wheels 249 | . . . 249 Hover . | . . . . Flight . | . . . . Fastest Speed 50 | 50 120 120 110 Average Speed 135 | 103 120 141 145 Slowest Speed 450 | 120 120 190 450 Overloaded Moves . | . . . . Propulsion Burnouts . | . . . . Robots Hopped . | . . . . Potential Cave-ins . | . . . . Cave-ins Triggered . | . . . . Exploration Rate (%) 28 | 5 27 52 29 Regions Visited 3 Branch Regions 2 Pre-discovered Areas . | . . . . Known Exits Taken 3 | 1 1 1 . Unknown Exits Taken . | . . . . Scrap Searched . | . . . . Spaces Dug 3 | . . 3 . Terrain Destroyed 46 | . . 3 43 Melee . | . . . . Projectile 3 | . . 3 . AOE 43 | . . . 43 Terrain Rammed 1 | . . 1 . Walls Destroyed . | . . . . Machines Disabled . | . . . . Actions | -11 -10 -10 -10 --------- Run | Yrd Mat Min Sub Total 1140 | 86 255 386 413 Wait 84 | . 24 55 5 Move 936 | 70 195 318 353 Hop . | . . . . Pick Up 11 | 4 3 1 3 Fast Attach 12 | 6 2 1 3 Attach 11 | . 3 1 7 Detach 6 | . 2 1 3 Swap 2 | . 1 1 . Drop 2 | . . 1 1 Fire 72 | 6 24 4 38 Melee 1 | . 1 . . Ram 1 | . . 1 . Kick 2 | . . 2 . Crush . | . . . . Escape Stasis . | . . . . Rewire . | . . . . Trap . | . . . . Miscellaneous . | . . . . Route ------- -11/Scrapyard -10/Materials (discovered 2 exits: *Mat / *Min) -10/Mines (discovered 2 exits: *Mat / *Sub) -10/Subcaves History --------- Turn | Location | Event 2 | -11/Scrapyard | Met Revision 17 70 | -11/Scrapyard | Identified exit to Materials 70 | -11/Scrapyard | Discovered exit to Materials (range 8) 99 | -11/Scrapyard | Entered Materials 99 | -10/Materials | Evolved 1 slot: Utility x1 310 | -10/Materials | Build established: Hacker-Mutant 363 | -10/Materials | Identified exit to Materials 363 | -10/Materials | Discovered exit to Materials (range 3) 390 | -10/Materials | Identified exit to Mines 390 | -10/Materials | Discovered exit to Mines (range 15) 418 | -10/Materials | Entered Mines 508 | -10/Mines | Received a Rocket Launcher from a helpful Derelict 733 | -10/Mines | Identified exit to Subcaves 733 | -10/Mines | Discovered exit to Subcaves (range 13) 771 | -10/Mines | Discovered exit to Materials (range 8) 950 | -10/Mines | Entered Subcaves 1121 | -10/Subcaves | Ambushed by swarm of Subdwellers 1136 | -10/Subcaves | Ambushed by Subdweller buried in earth 1136 | -10/Subcaves | Ambushed by Subdwellers from Twisted Machinery 1163 | -10/Subcaves | Lost 3 allies 1171 | -10/Subcaves | Destroyed 7 combat bots 1507 | -10/Subcaves | Core integrity fell below 50% 1536 | -10/Subcaves | Core integrity fell below 20% 1565 | -10/Subcaves | Destroyed by LT-B9N(R) with Subdweller Laser Last Messages --------------- %%MXEIF>SNN 2TLUB3QY6T 9T-7R4(R) destroyed. Acquired 31 matter. Acquired Neutrino Core. Critical hit (Destroy). Acquired 32 matter. Lgt. Armor Plating destroyed. Weapon Shielding destroyed. Q0-CZQ(R) destroyed. 5X-V6V(R) destroyed. LT-B9N(R) affixes Scrap Shield Fragment to Scrap Shield. [Achievement: Let's See Who's Tougher] Sub. Monowheel destroyed. Destroyed Sub. Monowheel. Rocket Launcher destroyed. Destroyed Rocket Launcher. LT-B9N(R) affixes Scrap Shield Fragment to Scrap Shield. The unstable cave ceiling collapses. Map ----- +----------------------------------------------------+ | | | | | | | | | | | | | ?????????????????????????????????????????????????? | | ?????????????????????????????????????????????????? | | ?????????????????????????????????????????????????? | | ?????????????????????????????????????????????????? | | ?????????????????????????????????????????????????? | | ?????????????????????????????????????????????????? | | ?????????????????????????????????????????????????? | | ?????????????????????????????????????????????????? | | ?????????????????????????????????????????????????? | | ?????????????????????????????????????????????????? | | ?????????????????????????????????????????????????? | | ?????????????????????????????????????????????????? | | ?????????????????????????????????????????????????? | | ?????????????????????????????????????????????????? | | ###?????????######??###???####???????????????????? | | ##????##?## #### #### # ????????????????????? | | ## #?# ## # " #????????????????????? | | #?# ## "#????????????????????? | | #???## ### * R "#????????????????????? | | #????????# ## *% @ #####????????????????? | | ##????????# % [ #????????????????? | | ????????### & ## "#????????????????? | | ????????# ! =######" ""#????????????????? | | ????????# #???# ##### ?????????????? | | ????????# ##??####????? ##????????????? | | ????????# #?????????????#?????????????? | | #######?# ##???????????????????????????? | | ## #?# #????? ## ??????????????? | | #?### ## ??????????????? | | #### ??????????????? | | ## #???????????????????? | | ### ###???????????????????? | | # ## ## ##?????????????????????? | | ##### ##?# #??????????????????????? | | # #???###???###??????????????????????? | | #### ## #??????????????????????????????????? | | #??# # ##??????????????????????????????????? | | ??# #???????????????????????????????????? | | ?# #???????????????????????????????????? | | ?# ## #??????????????????????????????????? | | ?# ####### #?????????????????????????????????? | | ?######??????# ????????????????????????????????? | | ?????????????? ???????????????????????????????? | | ???????????????#? ???????????????????????????????? | +----------------------------------------------------+ Best States ------------- Heat Dissipation 25 Energy Generation 19 Energy Capacity 325 Matter Stores 347 Matter Capacity 350 Sight Range 21 Terrain Scan Density 10 Armor Coverage 800 Resistance: KI 35 Resistance: TH 35 Resistance: EX 35 Resistance: EM 35 Resistance: I 35 Resistance: S 35 Resistance: P 35 Weapon Shielding 33 Evasion (%) 55 Offensive Hacking 20 Item Schematics ----------------- None Robot Schematics ------------------ None Fabricated ------------ Nothing Repaired ---------- Nothing Alien Tech Used ----------------- None Achievements -------------- Let's See Who's Tougher Challenges ------------ None Game ------ Seed WarlordTractorRigger Manual? 0 Play Time 00:26:25 Cumulative 1.0 hours Start 2025.08.04 @ 15:53:55 End 2025.08.04 @ 16:20:23 Sessions 1 Manual Loads 0 Difficulty Explorer Special Mode None Game No. 2 Rogue 0 Adventurer 0 Explorer 2 Win Type - Total 0 Types 0/0/0/0/0/0/0/0/0/0 Lore% 0 Gallery% 3 Achievement% 2 Wizard Run 0 Options --------- Layout 1 ASCII 0 Keyboard 0 Movement Mouse Keybinds 0 Fullscreen 1 Font 24/Smallcaps Map View 50x35 Zoom Use 0% Tactical HUD 0 Map Filters NONE Filters NONE Steam 1 RUN: d2d3ae05-4f6d-4a3c-b662-ebd4e87750a6